bitfinex/quotes_ETHUSD_20240711
["timestamp","ask_amount","ask_price","bid_price","bid_amount"]
[1720706565314,0.65632921,3185.8,3185.5,3.13912]
[1720706565622,0.65632921,3185.7,3185.5,3.13912]
[1720706566227,0.65632921,3185.7,3185.6,3.13912]
[1720706566456,0.08191578,3185.7,3185.6,3.13912]
[1720706566715,0.08191578,3185.7,3185.5,3.13912]
[1720706566716,0.65632921,3185.8,3185.7,3.13902]
[1720706566924,0.0819103,3185.8,3185.6,3.13907]
[1720706567129,0.65632921,3185.8,3185.5,3.13912]
[1720706567682,0.73824568,3185.7,3185.4,3.13928]
[1720706567992,0.65632921,3185.5,3185.2,3.13951]
[1720706568200,0.65632921,3185.5,3185.0,3.13963]
[1720706568405,0.73825204,3185.4,3185.2,3.1395]
[1720706568718,0.73825204,3185.4,3185.0,3.13963]
[1720706568719,0.08192558,3185.3,3185.0,3.13963]
[1720706568931,0.73825516,3185.3,3185.1,0.2]
[1720706569235,0.65632921,3185.3,3185.1,0.2]
[1720706569808,0.65632921,3185.3,3185.1,3.33961]
[1720706570121,0.65632921,3185.3,3185.1,0.2]
[1720706570320,0.0819275,3185.2,3185.1,3.33961]
[1720706570553,0.65632921,3185.3,3185.1,3.33961]
[1720706570554,0.65632921,3185.3,3185.2,3.13952]
[1720706570828,0.65632921,3185.4,3185.2,3.13952]
[1720706571184,0.98449381,3185.6,3185.1,3.33959]
[1720706571185,0.73825434,3185.3,3185.1,3.33959]
[1720706571384,0.98449381,3185.5,3185.1,3.33959]
[1720706571385,0.65632921,3185.4,3185.1,3.33959]
[1720706571628,0.65632921,3185.4,3185.2,3.13946]
[1720706571855,0.65632921,3185.5,3185.2,3.13946]
[1720706572190,0.08192179,3185.4,3185.2,3.13946]
[1720706572392,0.65632921,3185.4,3185.1,0.2]
[1720706572727,0.65632921,3185.3,3185.1,0.2]
[1720706572884,0.65632921,3185.3,3185.1,3.33959]
[1720706573095,0.08192736,3185.2,3185.1,0.2]
[1720706573319,0.73803014,3185.2,3185.1,0.2]
[1720706573632,0.73805827,3185.2,3185.1,0.2]
[1720706573835,0.08192736,3185.2,3185.1,0.2]
[1720706574436,0.98449381,3185.3,3185.1,0.2]
[1720706574938,0.65625359,3185.2,3185.1,0.2]
[1720706575236,0.65625359,3185.5,3185.2,2.3741]
[1720706575441,0.65625359,3185.7,3185.4,3.13932]
[1720706575654,0.08191296,3185.8,3185.6,3.13912]
[1720706575865,0.08191296,3185.8,3185.3,0.0627777]
[1720706575866,0.65625359,3185.9,3185.8,3.13892]
[1720706576172,0.65625359,3186.0,3185.9,3.13883]
[1720706576317,0.73816048,3186.0,3185.9,3.13883]
[1720706576517,0.73816048,3186.0,3185.9,6.27766]
[1720706576518,0.7381599,3186.0,3185.9,6.27766]
[1720706576717,0.65625359,3186.1,3186.0,3.13873]
[1720706577254,0.08190457,3186.1,3186.0,3.13873]
[1720706577414,0.65625359,3186.2,3186.0,3.13873]
[1720706577615,0.08190253,3186.1,3185.8,3.13883]
[1720706577918,0.65625359,3186.0,3185.6,3.1391]
[1720706578115,0.65625359,3186.0,3185.7,3.13901]
[1720706578566,0.08190983,3185.9,3185.5,3.33916]
[1720706578853,0.65625359,3185.9,3185.7,3.13902]
[1720706579069,0.65625359,3186.0,3185.7,3.13902]
[1720706579372,0.73788043,3185.9,3185.7,3.13902]
[1720706579560,0.65596957,3185.9,3185.7,3.13902]
[1720706579771,0.65596957,3185.9,3185.5,6.47835]
[1720706580052,0.73788224,3185.8,3185.5,0.2]
[1720706580265,0.65596957,3185.8,3185.5,3.33914]
[1720706580670,0.65596957,3185.8,3185.5,0.2]
[1720706581252,0.65596957,3185.8,3185.5,0.4]
[1720706581465,0.37948596,3185.7,3185.5,0.4]
[1720706583269,3.13912,3185.6,3185.5,0.4]
[1720706583581,8.60804,3185.6,3185.5,0.4]
[1720706583789,0.65596957,3185.9,3185.5,0.4]
[1720706584860,1.08706001,3185.6,3185.5,0.4]
[1720706585986,6.27742,3186.1,3185.5,0.4]
[1720706586292,0.627742,3186.0,3185.5,0.4]
[1720706586586,3.139,3185.8,3185.5,0.4]
[1720706586900,4.22618097,3185.7,3185.5,0.4]
[1720706587188,7.36540622,3185.6,3185.5,0.4]
[1720706587388,8.32749684,3185.6,3185.5,0.4]
[1720706587869,2.04925684,3185.6,3185.5,0.4]
[1720706588253,1.08716622,3185.6,3185.5,0.4]
[1720706588570,4.22628622,3185.6,3185.5,0.4]
[1720706590596,4.22632547,3185.6,3185.5,0.4]
[1720706591316,1.08720547,3185.6,3185.5,0.4]
[1720706593088,4.22632547,3185.6,3185.5,0.4]
[1720706593296,5.43079978,3185.6,3185.5,0.4]
[1720706593487,7.07114282,3185.6,3185.5,0.36000001]
[1720706594130,4.26166337,3185.6,3185.5,0.36000001]
[1720706594410,7.07022157,3185.6,3185.5,0.36000001]
[1720706594821,1.55510977,3185.6,3185.5,0.36000001]
[1720706594981,2.86769621,3185.6,3185.5,0.36000001]
[1720706595183,2.15349583,3185.6,3185.5,0.36000001]
[1720706595579,1.16909395,3185.6,3185.5,0.36000001]
[1720706595785,1.55365821,3185.6,3185.5,0.36000001]
[1720706596007,2.153573,3185.6,3185.5,2.81340001]
[1720706596212,0.65629882,3185.7,3185.5,6.23396001]
[1720706596587,0.65629882,3185.8,3185.5,3.09474001]
[1720706596788,0.65629882,3185.8,3185.7,3.13902]
[1720706597099,0.65629882,3185.9,3185.6,3.13912]
[1720706597298,0.65629882,3185.9,3185.8,3.13892]
[1720706597504,0.65644672,3186.0,3185.9,3.13882]
[1720706597821,0.73835437,3186.0,3185.7,3.762316]
[1720706598027,0.73835546,3185.9,3185.5,3.09474001]
[1720706598320,0.65644672,3185.9,3185.7,3.13895]
[1720706598835,0.65644672,3185.9,3185.8,3.13892]
[1720706599120,0.98467008,3186.1,3185.8,3.13892]
[1720706599121,0.65644672,3186.1,3186.0,3.13873]
[1720706599690,0.73835129,3186.1,3186.0,3.13873]
[1720706599888,0.73835129,3186.1,3186.0,3.766485]
[1720706599889,0.65644672,3186.1,3186.0,3.766485]
[1720706600101,0.65644672,3186.2,3186.1,3.13863]
[1720706600838,0.08190102,3186.2,3186.1,3.13863]
[1720706601192,0.65644672,3186.3,3186.1,3.13863]
[1720706601395,0.08189787,3186.2,3186.1,6.34002539]
[1720706601590,0.65644672,3186.3,3186.2,5.61443]
[1720706601934,0.65644672,3186.3,3186.2,8.75296]
[1720706602121,0.65644672,3186.4,3186.3,6.27686]
[1720706602322,0.98467008,3186.5,3186.4,6.27666]
[1720706602495,0.73876358,3186.5,3186.4,6.27666]
[1720706602805,0.08189162,3186.5,3186.4,7.151916]
[1720706603000,0.65687196,3186.6,3186.5,6.27646]
[1720706603215,0.98467008,3186.8,3186.6,3.13814]
[1720706603216,0.65687196,3186.8,3186.6,3.13814]
[1720706603544,0.65687196,3186.8,3186.7,3.13804]
[1720706603697,0.98467008,3187.0,3186.8,3.13794]
[1720706603905,0.65675263,3187.0,3186.9,3.13784]
[1720706604122,0.98467008,3187.1,3187.0,3.13774]
[1720706604123,0.65675263,3187.1,3187.0,3.13774]
[1720706604415,0.98467008,3187.2,3187.0,3.13774]
[1720706604416,0.65675263,3187.2,3187.0,3.13774]
[1720706604632,0.73862902,3187.1,3187.0,3.13774]
[1720706604844,0.65675263,3187.2,3187.0,3.13774]
[1720706605370,0.65675263,3187.2,3187.0,6.27539]
[1720706605540,0.65675263,3187.4,3187.1,3.13764]
[1720706605707,0.98467008,3187.5,3187.1,3.13764]
[1720706605708,0.73862685,3187.3,3187.1,3.13764]
[1720706605905,0.65675263,3187.4,3187.1,3.13764]
[1720706606140,0.73862637,3187.3,3187.1,3.13764]
[1720706606345,0.65675263,3187.3,3186.9,2.4759]
[1720706606545,0.65675263,3187.3,3186.9,5.61374]
[1720706606765,0.08187612,3187.2,3186.6,3.13811]
[1720706606972,0.73862875,3187.1,3186.6,3.13811]
[1720706607110,0.73863573,3187.0,3186.6,3.13811]
[1720706607313,0.65675263,3187.0,3186.6,6.27618]
[1720706607606,0.65675263,3186.7,3186.1,3.13]
[1720706607807,0.65675263,3186.4,3185.9,1.26]
[1720706608008,0.65675263,3186.1,3185.9,1.26]
[1720706608209,0.08189469,3186.0,3185.9,1.26]
[1720706608509,0.08191136,3186.0,3185.9,1.26]
[1720706608708,0.65675263,3186.1,3185.9,1.26]
[1720706608916,0.65675263,3186.1,3185.5,0.36000001]
[1720706608917,1.06658191,3186.0,3185.5,0.36000001]
[1720706609149,0.65629732,3185.8,3185.5,0.36000001]
[1720706609349,0.73820915,3185.8,3185.5,0.36000001]
[1720706609656,0.65629732,3185.8,3185.5,0.36000001]
[1720706609814,1.31289344,3185.7,3185.5,0.36000001]
[1720706610012,0.65635445,3185.6,3185.5,0.36000001]
[1720706610221,0.73827118,3185.6,3185.5,0.36000001]
[1720706610546,0.65634818,3185.6,3185.5,0.36000001]
[1720706610774,1.78360452,3185.6,3185.5,0.36000001]
[1720706610935,1.06648214,3185.6,3185.5,0.36000001]
[1720706611122,1.86451421,3185.6,3185.5,0.36000001]
[1720706611446,2.3354601,3185.6,3185.5,0.36000001]
[1720706611828,4.16188374,3185.6,3185.5,0.36000001]
[1720706612335,5.80261861,3185.6,3185.5,0.32400001]
[1720706612548,1.02276374,3185.6,3185.5,0.32400001]
[1720706612847,1.86443459,3185.6,3185.5,0.32400001]
[1720706613047,0.47094589,3185.6,3185.5,0.32400001]
[1720706613248,0.9844114,3185.6,3185.5,0.32400001]
[1720706613549,0.08192822,3185.6,3185.5,0.32400001]
[1720706613711,0.98430253,3185.6,3185.5,0.32400001]
[1720706613908,0.08192822,3185.6,3185.5,0.32400001]
[1720706614147,1.30409751,3185.6,3185.5,0.32400001]
[1720706614351,2.01940852,3185.6,3185.5,0.32400001]
[1720706614556,2.01943295,3185.6,3185.5,0.32400001]
[1720706614714,1.06611053,3185.6,3185.5,0.32400001]
[1720706614918,0.73795823,3185.6,3185.5,0.32400001]
[1720706615213,0.08192822,3185.6,3185.5,0.32400001]
[1720706615413,0.65588739,3185.6,3185.0,3.13965]
[1720706615639,0.65588739,3185.5,3185.0,3.13965]
[1720706615947,0.08192822,3185.6,3185.0,3.893602]
[1720706615948,0.65588739,3185.6,3185.0,3.893602]
[1720706616248,0.65588739,3185.7,3185.3,3.13934]
[1720706616435,0.65588739,3185.8,3185.0,0.753952]
[1720706616747,0.73780558,3185.7,3185.0,3.13963]
[1720706616954,0.73780877,3185.6,3185.0,3.13963]
[1720706617164,0.73780877,3185.5,3184.9,1.26]
[1720706617338,0.65588739,3185.4,3184.9,1.26]
[1720706617554,0.73780877,3185.3,3184.9,1.26]
[1720706617865,0.65588739,3185.3,3184.9,1.26]
[1720706618035,0.65588739,3185.4,3184.9,1.26]
[1720706618436,0.7378181,3185.3,3184.9,1.26]
[1720706618737,0.65588739,3185.3,3184.9,1.26]
[1720706618941,0.7378198,3185.3,3184.9,1.26]
[1720706619148,0.65588739,3185.3,3184.9,1.26]
[1720706619354,0.73781994,3185.3,3184.9,1.26]
[1720706619550,0.65588739,3185.3,3184.9,1.26]
[1720706619754,0.73781741,3185.4,3184.9,1.26]
[1720706620051,0.65588739,3185.2,3184.9,1.26]
[1720706620255,0.81989436,3185.2,3184.9,1.26]
[1720706620453,1.45347969,3185.1,3184.3,3.14039]
[1720706620659,0.6556173,3184.9,3184.3,3.14039]
[1720706620837,0.6556173,3184.8,3184.3,3.14039]
[1720706621172,0.6556173,3184.9,3184.3,3.14039]
[1720706621394,0.08194363,3184.8,3184.2,3.1405]
[1720706621670,0.6556173,3184.9,3184.3,3.14038]
[1720706621869,0.08194398,3184.8,3184.0,3.14066]
[1720706622031,0.6556173,3184.8,3184.0,3.14066]
[1720706622235,0.73756128,3184.7,3184.0,3.14066]
[1720706622536,0.73756128,3184.7,3183.9,1.26]
[1720706622537,0.82779166,3184.7,3183.9,1.26]
[1720706622737,0.6556173,3184.5,3183.9,1.26]
[1720706623135,0.73757409,3184.4,3183.9,1.26]
[1720706623336,0.6556173,3184.5,3183.9,1.26]
[1720706623761,0.08195622,3184.4,3183.9,1.26]
[1720706623944,0.6556173,3184.5,3183.9,1.26]
[1720706624165,0.73757475,3184.4,3183.9,1.26]
[1720706624365,0.08195959,3184.3,3183.9,1.26]
[1720706624566,0.82779301,3184.4,3183.9,1.26]
[1720706625079,0.08195874,3184.3,3183.9,1.26]
[1720706625286,0.82779301,3184.4,3183.9,1.26]
[1720706625494,0.08196346,3184.3,3183.9,1.26]
[1720706625646,0.50341488,3184.3,3183.9,1.26]
[1720706625986,3.7961273,3184.2,3183.9,1.26]
[1720706626160,3.7961273,3184.2,3182.9,2.2809]
[1720706626161,0.73758143,3184.1,3182.9,2.2809]
[1720706626364,0.6556173,3183.9,3182.9,5.42261]
[1720706626547,0.6556173,3183.8,3183.0,3.14168]
[1720706626743,3.1409,3183.8,3182.8,3.14179]
[1720706627099,0.736118,3183.7,3182.5,1.26]
[1720706627385,0.65413734,3183.5,3182.5,4.40212]
[1720706627585,7.42224974,3183.6,3182.5,4.40212]
[1720706627792,0.08198944,3183.5,3182.6,3.14207]
[1720706627999,0.43630592,3183.4,3182.6,3.14207]
[1720706628157,1.13995974,3183.6,3182.7,3.14195]
[1720706628507,0.65413734,3183.7,3182.8,3.14186]
[1720706628667,0.65413734,3184.0,3183.0,3.14168]
[1720706629003,3.79468734,3184.2,3182.8,3.14183]
[1720706629150,3.1407,3184.0,3183.1,3.14157]
[1720706629349,3.79468734,3184.2,3183.1,3.14157]
[1720706629590,0.47758933,3184.1,3183.2,3.14139]
[1720706629751,0.65413734,3184.4,3183.5,3.14118]
[1720706630100,0.65413734,3184.4,3183.2,2.3342]
[1720706630101,0.65413734,3184.6,3183.6,3.20388562]
[1720706630414,1.63534335,3184.8,3183.4,3.14124]
[1720706630555,3.14018,3184.6,3183.5,3.14113]
[1720706630746,4.18194504,3184.6,3183.6,3.14106]
[1720706630952,3.22219408,3184.5,3183.5,3.769407]
[1720706631183,3.22219408,3184.5,3183.5,0.628237]
[1720706631184,3.14023,3184.5,3183.5,0.628237]
[1720706631364,3.14023,3184.5,3183.3,3.14138]
[1720706631365,3.14031,3184.4,3183.3,3.14138]
[1720706631659,3.79444734,3184.4,3183.3,3.14138]
[1720706631857,3.14031,3184.4,3183.4,3.14122]
[1720706632174,3.14031,3184.4,3183.2,5.47562]
[1720706632371,3.14066,3184.1,3183.0,3.14163]
[1720706632571,3.454726,3184.1,3183.1,3.455743]
[1720706632892,3.7935844,3184.4,3183.2,3.14147]
[1720706633095,3.7935844,3184.4,3183.4,3.14119]
[1720706633096,3.14035,3184.4,3183.4,3.14119]
[1720706633281,1.0408621,3184.6,3183.8,3.14083]
[1720706633485,1.0408621,3184.6,3183.6,6.282]
[1720706633486,3.5277977,3184.6,3183.6,6.282]
[1720706633670,3.5277977,3184.6,3183.7,3.14099]
[1720706633900,0.3876277,3184.6,3183.7,3.14099]
[1720706634213,3.5277977,3184.6,3183.7,3.14099]
[1720706634414,0.41810321,3184.5,3183.5,3.14113]
[1720706634574,0.41810321,3184.5,3183.4,3.1412]
[1720706634776,0.41810321,3184.5,3183.5,3.14116]
[1720706635118,0.41810321,3184.5,3183.6,3.14108]
[1720706635477,0.41810321,3184.5,3183.7,3.14099]
[1720706635699,0.41810321,3184.5,3183.6,6.28211]
[1720706635976,3.5277977,3184.6,3183.6,3.769211]
[1720706635977,3.14013,3184.6,3183.6,3.769211]
[1720706636321,3.14013,3184.6,3183.2,2.3677]
[1720706636322,8.59287,3185.0,3184.0,3.14066]
[1720706637514,8.59287,3185.0,3183.6,3.14102]
[1720706637515,3.14009,3184.7,3183.6,3.14102]
[1720706638113,3.14009,3184.7,3183.7,3.14098]
[1720706638318,0.314009,3184.6,3183.7,3.14098]
[1720706638501,3.13986,3184.9,3183.8,3.14083]
[1720706638705,2.3133,3185.0,3184.1,3.1406]
[1720706638910,0.65334591,3185.3,3184.4,3.14023]
[1720706639076,3.13957,3185.2,3184.2,3.14041]
[1720706639414,3.13961,3185.1,3184.0,2.2623]
[1720706639612,3.453691,3185.0,3184.0,2.2623]
[1720706639833,3.13982,3184.9,3183.5,3.7024]
[1720706639988,3.14008,3184.7,3183.6,3.141]
[1720706640186,5.54572,3184.6,3183.5,3.7024]
[1720706640407,0.86858,3184.5,3183.6,3.14101]
[1720706640735,0.86858,3184.5,3183.5,3.7024]
[1720706640736,4.0088,3184.5,3183.5,3.7024]
[1720706641089,3.14058,3184.2,3183.5,1.26]
[1720706641624,3.14034,3184.4,3183.5,1.26]
[1720706641842,0.65319028,3184.7,3184.0,3.14065]
[1720706642125,1.95957085,3185.4,3183.5,1.26]
[1720706642126,1.6329757,3185.2,3184.5,3.14019]
[1720706642337,3.78008057,3185.5,3184.5,3.14019]
[1720706642338,2.4737,3185.5,3184.5,3.14019]
[1720706642620,1.08721962,3185.4,3184.5,3.14019]
[1720706642830,0.35609196,3185.3,3184.5,3.14019]
[1720706643034,3.13967,3185.1,3184.1,3.14059]
[1720706643186,1.08733116,3185.0,3183.5,1.26]
[1720706643390,1.08733116,3185.0,3183.7,5.43694]
[1720706643391,3.14003,3184.7,3183.7,5.43694]
[1720706643933,3.14003,3184.7,3183.5,4.4011]
[1720706643934,5.54923,3184.7,3183.5,4.4011]
[1720706644234,6.28054,3184.5,3183.5,1.26]
[1720706644524,3.14051,3184.2,3183.5,1.26]
[1720706644826,0.314051,3184.1,3183.5,1.26]
[1720706645029,3.1405,3184.2,3183.5,1.26]
[1720706645328,3.14062,3184.1,3183.5,1.26]
[1720706645496,3.14073,3184.0,3183.5,1.26]
[1720706646089,3.1405,3184.2,3183.5,1.26]
[1720706646408,3.1406,3184.1,3183.5,1.26]
[1720706646728,0.62811,3184.1,3183.5,1.26]
[1720706646886,0.96719328,3184.6,3183.6,3.14104]
[1720706647088,0.314003,3184.6,3183.6,5.55314]
[1720706647325,0.314003,3184.6,3183.7,3.1409]
[1720706647487,0.314003,3184.6,3183.8,3.14087]
[1720706647691,2.2826,3185.1,3183.6,2.4121]
[1720706647892,1.08750715,3184.5,3183.6,2.4121]
[1720706648090,0.65359108,3184.8,3184.0,3.14062]
[1720706648595,0.65359108,3184.8,3184.1,3.14057]
[1720706648895,0.65359108,3184.8,3184.0,3.14064]
[1720706649096,1.23971157,3184.8,3183.9,3.1407]
[1720706649317,1.23971157,3184.8,3183.6,2.4121]
[1720706649636,3.1401,3184.7,3183.6,5.55318]
[1720706649945,6.28021,3184.7,3183.7,3.14094]
[1720706650228,3.14062,3184.1,3183.5,1.26]
[1720706650385,3.14058,3184.2,3183.5,1.26]
[1720706651126,3.14068,3184.1,3183.5,1.26]
[1720706651334,6.28152,3184.0,3183.5,1.26]
[1720706652196,6.28152,3184.0,3182.9,3.14]
[1720706652197,3.14097,3183.8,3182.9,3.14]
[1720706652531,3.14109,3183.6,3182.6,3.14203]
[1720706652687,3.14109,3183.6,3182.4,3.5352]
[1720706652892,3.1412,3183.5,3182.5,3.14211]
[1720706653525,3.1412,3183.5,3182.6,3.14205]
[1720706653939,3.8008387,3183.5,3182.4,6.67739]
[1720706654090,0.6596387,3183.5,3182.4,3.5352]
[1720706654438,3.14159,3183.1,3182.4,1.26]
[1720706654829,3.14184,3182.9,3182.4,1.26]
[1720706655751,3.14207,3182.7,3181.5,3.1431]
[1720706656057,4.23036923,3182.6,3181.5,3.14308]
[1720706656344,3.14218,3182.6,3181.5,3.14308]
[1720706656504,3.14218,3182.6,3181.6,3.14306]
[1720706656703,0.6598434,3182.6,3181.6,3.14306]
[1720706656906,0.314184,3182.8,3181.9,3.14276]
[1720706657145,0.314184,3182.8,3181.4,2.4925]
[1720706657146,3.14143,3183.3,3182.2,3.14245]
[1720706657350,3.14122,3183.5,3182.3,5.64042854]
[1720706657562,1.08793016,3183.4,3182.5,3.1421]
[1720706657708,2.4655,3184.2,3182.6,0.06283386]
[1720706657909,1.08780358,3184.1,3183.0,3.14167]
[1720706658120,1.75719094,3184.0,3183.0,3.14167]
[1720706658343,0.66938736,3184.0,3183.1,3.14157]
[1720706658541,0.23945,3184.3,3183.1,5.46167]
[1720706658705,1.0876854,3184.2,3183.2,3.20430292]
[1720706658910,3.14058,3184.2,3183.1,2.3201]
[1720706659259,3.14077,3184.0,3183.1,2.3201]
[1720706659415,3.37986,3184.3,3183.3,3.14131]
[1720706659609,1.42564104,3184.2,3183.3,3.14131]
[1720706659845,3.14028,3184.5,3183.4,3.14127]
[1720706660050,1.08759615,3184.4,3183.4,3.14127]
[1720706660214,3.14041,3184.3,3183.3,3.14131]
[1720706660430,0.65359108,3184.1,3183.3,3.14131]
[1720706660629,0.65359108,3184.2,3183.4,0.06281758]
[1720706660964,0.65359108,3184.6,3183.9,5.61682]
[1720706661152,0.65359108,3184.8,3184.0,3.14067]
[1720706661531,0.73554013,3184.8,3184.2,3.14046]
[1720706661729,0.65359108,3184.9,3184.4,3.1403]
[1720706661958,0.65359108,3184.9,3183.9,2.4761]
[1720706662269,0.40653441,3184.9,3184.1,3.1406]
[1720706662472,0.40653441,3184.9,3183.9,2.4761]
[1720706662473,0.65546758,3184.7,3183.9,2.4761]
[1720706662770,0.65546758,3184.5,3183.9,5.61684]
[1720706662985,0.65546758,3184.5,3183.3,2.496]
[1720706663135,0.65546758,3184.2,3183.3,2.496]
[1720706663335,0.65546758,3184.2,3183.3,6.01297]
[1720706663529,0.65546758,3184.0,3183.3,6.01297]
[1720706663853,0.65546758,3183.8,3183.3,2.496]
[1720706664175,0.65546758,3183.8,3183.2,1.26]
[1720706664176,0.65546758,3183.6,3183.2,1.26]
[1720706664391,0.65546758,3183.5,3183.2,1.26]
[1720706664599,0.65546758,3183.3,3182.9,3.14]
[1720706664877,0.65592129,3183.2,3182.9,3.14]
[1720706665056,0.73787608,3183.1,3182.9,3.14]
[1720706665232,0.65592129,3183.1,3182.9,3.14]
[1720706665632,0.7379113,3183.0,3182.9,3.14]
[1720706665879,0.65592129,3183.1,3182.9,3.14]
[1720706666296,4.78007094,3183.6,3182.9,3.454]
[1720706666297,0.65592129,3183.5,3182.9,3.454]
[1720706666452,0.65592129,3183.5,3183.0,3.14165]
[1720706666780,0.65592129,3183.6,3183.3,3.14133]
[1720706666953,0.65592129,3183.7,3183.0,3.34164]
[1720706667150,0.65592129,3183.6,3183.1,3.14153]
[1720706667363,0.65592129,3183.6,3183.0,3.3416]
[1720706667571,0.82803049,3183.6,3183.0,0.2]
[1720706667886,0.73789065,3183.5,3183.0,3.34167]
[1720706668088,0.08196936,3183.4,3183.0,3.34167]
[1720706668379,0.65592129,3183.5,3183.0,3.34167]
[1720706668884,0.65592129,3183.6,3183.3,3.14139]
[1720706669180,0.65592129,3183.4,3183.0,1.162354]
[1720706669354,0.65592129,3183.5,3183.0,0.2]
[1720706669680,0.65592129,3183.3,3183.0,0.2]
[1720706669890,0.65592129,3183.1,3183.0,0.2]
[1720706670269,1.06517577,3183.1,3183.0,0.2]
[1720706670571,1.72115362,3183.1,3183.0,0.2]
[1720706670790,2.14747423,3183.1,3183.0,0.4]
[1720706670937,0.83653906,3183.1,3183.0,0.4]
[1720706671336,5.06614285,3183.1,3183.0,0.36000001]
[1720706671772,3.89615467,3183.1,3183.0,0.36000001]
[1720706671946,5.06614766,3183.1,3183.0,0.36000001]
[1720706672149,8.20773766,3183.1,3183.0,0.36000001]
[1720706672381,8.92962707,3183.1,3183.0,0.36000001]
[1720706672535,10.89744461,3183.1,3183.0,0.36000001]
[1720706672991,10.89744461,3183.1,3183.0,0.22435827]
[1720706673361,3.14216,3182.6,3181.5,5.42686]
[1720706673682,0.65538326,3182.0,3181.5,5.42686]
[1720706674100,0.65538326,3182.0,3181.5,2.2837]
[1720706674377,0.73740236,3181.9,3181.2,3.14346]
[1720706674579,0.65538326,3182.0,3181.2,3.14346]
[1720706674779,0.73740536,3181.9,3181.2,3.14346]
[1720706674997,0.65538326,3182.0,3181.3,0.628701]
[1720706675193,0.6546511,3182.1,3181.3,0.628701]
[1720706675481,0.73667057,3182.1,3181.3,0.628701]
[1720706675638,0.73667057,3182.0,3181.3,0.628701]
[1720706675837,0.6546511,3182.0,3181.2,3.14346]
[1720706676091,7.26710666,3182.2,3181.2,3.14346]
[1720706676092,0.6546511,3182.1,3181.2,3.14346]
[1720706676260,0.08202289,3182.0,3181.2,3.14346]
[1720706676464,0.73667399,3182.0,3181.2,3.14346]
[1720706676666,0.73667399,3182.0,3181.3,0.314346]
[1720706676667,0.6546511,3182.0,3181.3,0.314346]
[1720706677195,0.6546511,3182.1,3181.5,3.1431]
[1720706677397,0.98197666,3182.3,3181.5,3.1431]
[1720706677398,0.6546511,3182.2,3181.5,3.1431]
[1720706677599,0.6546511,3182.3,3181.7,3.14295]
[1720706677750,0.6546511,3182.4,3181.7,3.14295]
[1720706677951,0.6546511,3182.6,3182.2,3.14247]
[1720706678256,0.6546511,3182.7,3181.8,5.62994]
[1720706678456,0.6546511,3182.8,3181.9,3.7686145]
[1720706678673,0.08200228,3182.7,3181.9,3.83146196]
[1720706678914,0.73665572,3182.7,3182.2,3.14239]
[1720706679171,0.6546511,3182.9,3182.3,0.06284036]
[1720706679484,0.6546511,3183.0,3182.3,0.3833664]
[1720706679998,0.6546511,3183.0,3181.9,3.7685745]
[1720706679999,0.6546511,3182.8,3181.9,3.7685745]
[1720706680173,0.6546511,3182.8,3181.9,3.7686245]
[1720706680376,0.6546511,3182.8,3182.0,3.14267]
[1720706680609,3.14183,3182.9,3182.0,3.14267]
[1720706680610,0.6546511,3182.9,3182.0,3.14267]
[1720706680828,0.6546511,3182.9,3182.1,0.37685245]
[1720706680996,0.08200057,3182.8,3182.1,0.37685245]
[1720706681192,0.6546511,3182.9,3182.2,3.20531582]
[1720706681412,3.14121,3183.5,3182.3,0.06284129]
[1720706681413,3.14141,3183.3,3182.3,0.06284129]
[1720706681714,0.65433397,3183.0,3182.2,3.14247]
[1720706681912,0.65433397,3183.0,3182.2,3.80866924]
[1720706682120,0.65433397,3182.8,3181.9,0.6258545]
[1720706682328,0.73633365,3182.8,3182.0,3.14266]
[1720706682482,0.65433397,3182.9,3182.2,3.14242]
[1720706682837,1.30866795,3183.2,3181.9,0.06284582]
[1720706682838,0.65433397,3183.0,3182.5,3.14216]
[1720706682975,0.65433397,3183.1,3182.6,0.314216]
[1720706683180,0.65433397,3183.1,3182.3,3.14229]
[1720706683380,0.65433397,3183.0,3182.3,3.14229]
[1720706683611,0.73632833,3183.0,3181.9,3.14276]
[1720706683925,0.08199631,3182.9,3182.1,3.14256]
[1720706684086,0.65433397,3183.0,3181.5,2.547]
[1720706684087,0.65433397,3182.8,3182.0,3.14259]
[1720706684415,0.65433397,3182.8,3182.1,3.456819]
[1720706684615,0.65433397,3182.8,3182.1,3.14256]
[1720706685349,0.08200129,3182.7,3182.1,3.14256]
[1720706685501,0.65433397,3182.8,3182.1,3.14249]
[1720706686037,0.65433397,3182.8,3182.2,0.06284262]
[1720706686337,0.65433397,3182.9,3182.5,3.14217]
[1720706686551,1.30866795,3183.2,3182.5,3.14217]
[1720706686552,0.65433397,3183.0,3182.6,0.06283541]
[1720706686848,0.65433397,3183.3,3182.6,2.47773074]
[1720706687154,0.65433397,3183.6,3183.1,3.14153]
[1720706687455,0.65433397,3183.3,3182.3,3.1423]
[1720706687598,0.08197802,3183.2,3182.5,3.14217]
[1720706687796,0.65433397,3183.2,3182.5,3.770617]
[1720706688003,0.65433397,3183.2,3182.1,8.69994]
[1720706688239,0.65433397,3183.0,3182.1,8.69994]
[1720706688439,0.65433397,3183.0,3182.2,3.14242]
[1720706688440,0.65433397,3182.8,3182.2,3.14242]
[1720706688670,0.73632478,3182.8,3182.3,3.14231]
[1720706688945,0.98150096,3183.0,3182.3,3.14231]
[1720706688946,0.65433397,3183.0,3182.4,3.14227]
[1720706689244,0.65433397,3182.9,3182.4,3.14227]
[1720706689541,0.65433397,3183.0,3182.4,3.14227]
[1720706689712,0.65433397,3183.0,3182.4,3.2051072]
[1720706689919,0.65433397,3183.0,3182.7,3.14191]
[1720706689920,0.73632689,3183.0,3182.7,3.14191]
[1720706690261,0.65433397,3183.2,3182.8,3.14181]
[1720706690542,0.73632319,3183.1,3182.7,3.14198]
[1720706690841,0.65433397,3183.1,3182.7,3.14198]
[1720706691042,0.65433397,3183.1,3182.8,6.28368]
[1720706691211,0.65433397,3183.2,3182.8,6.28368]
[1720706691411,0.73631881,3183.2,3182.8,6.28368]
[1720706691684,0.73631881,3183.2,3182.8,4.006358]
[1720706691685,0.65433397,3183.2,3182.8,4.006358]